[Event "Liberia Championship 2023"]
[Site "Monrovia"]
[Date "2024.01.25"]
[Round "10.6"]
[White "James, Tondo"]
[Black "Jacob, Jallah"]
[Result "1-0"]
[ECO "A16"]
[WhiteElo "1837"]
[BlackElo "1781"]
[Annotator "NA RC"]
[PlyCount "85"]
[EventDate "2024.01.16"]
[EventType "swiss"]
[EventCountry "LBR"]
[SourceTitle "playchess.com"]
[Source "ChessBase"]
[SourceQuality "1"]
[TimeControl "40/5400+30:1800+30"]

1. c4 {[%emt 0:06:36]} Nf6 {[%emt 0:10:09]} 2. Nc3 {[%emt 0:00:30]} g6 {[%emt 0:00:07]} 3. g3 {[%emt 0:00:30]} Bg7 {[%emt 1:21:44]} 4. Bg2 {[%emt 0:00:30]} O-O {[%emt 0:00:32]} 5. e4 {[%emt 0:00:30]} d6 {[%emt 0:01:00]} 6. Nge2 {[%emt 0:00:30]} c5 {[%emt 0:00:28]} 7. O-O {[%emt 0:00:30] A16: Englische Eröffnung.} e5 {[%emt 0:01:00]} 8. d3 {[%emt 0:00:30]} h6 {[%emt 0:01:01]} 9. h3 {[%emt 0:07:07]} Nc6 {[%emt 0:01:26]} 10. Be3 {[%emt 0:00:06]} Rb8 {[%emt 0:01:30]} 11. Qd2 {[%emt 0:02:38]} Kh7 {[%emt 0:00:43]} 12. f4 {[%emt 0:01:14]} Nd4 {[%emt 0:00:15]} 13. fxe5 dxe5 14. Nd5 {[%emt 0:02:37]} Nxd5 {[%emt 0:05:37]} 15. cxd5 {[%emt 0:00:59]} Bd7 {[%emt 0:02:12]} 16. Rf2 {[%emt 0:00:48]} b6 {[%emt 0:03:17]} 17. Raf1 {[%emt 0:00:45]} f6 {[%emt 0:00:16]} 18. Kh2 {[%emt 0:02:04]} Qc8 {[%emt 0:01:23]} 19. b3 {[%emt 0:00:46]} Qa6 {[%emt 0:02:28]} 20. g4 {[%emt 0:08:47]} Nxe2 {[%emt 0:00:40]} 21. Qxe2 {[%emt 0:01:27]} Rf7 {[%emt 0:03:11]} 22. h4 {[%emt 0:05:02]} Rbf8 {[%emt 0:02:02]} 23. Bh3 {[%emt 0:03:28]} Qc8 {[%emt 0:05:56]} 24. Rg1 {[%emt 0:02:51]} g5 {[%emt 0:01:38]} 25. Rgf1 {[%emt 0:11:54]} Kg8 {[%emt 0:00:08]} 26. Kg3 {[%emt 0:02:03]} Qd8 27. Rf3 {[%emt 0:07:05]} gxh4+ {[%emt 0:03:32]} 28. Kh2 {[%emt 0:00:25]} Qc8 {[%emt 0:03:20]} 29. Rg1 {[%emt 0:01:21]} (29. Qf2 $142) 29... Kh7 {[%emt 0:02:24]} 30. Qf2 {[%emt 0:00:36]} Kg8 {[%emt 0:15:13]} 31. Rg2 {[%emt 0:03:31]} ({Better is} 31. a4 $18) 31... Kh7 {[%emt 0:06:10]} (31... Qa6 $16 {keeps fighting.}) 32. Qxh4 {[%emt 0:00:40]} Qa6 $2 {[%emt 0:04:08]} (32... Qb8 33. Rfg3 Qc7 34. Bxh6 Bxh6) 33. Bc1 {[%emt 0:03:26]} (33. Rfg3 $142 b5 (33... Qxd3 $2 {is the wrong capture.} 34. g5 $18) 34. g5 (34. Bxc5 Kg8 $18) 34... fxg5 35. Rxg5 Bxh3 36. Qxh3) 33... Bb5 $2 {[%emt 0:01:00]} (33... b5 34. Be3 c4 35. dxc4 bxc4) 34. Qh5 {[%emt 0:11:39]} (34. Rfg3 $142 Bc4 35. g5 (35. bxc4 Qb7 $18) (35. dxc4 Qb7 $18) 35... fxg5 36. Rxg5 b5 37. Be6 (37. bxc4 Kh8 $18) 37... Kh8 38. Rxg7 (38. bxc4 Qxa2 39. Rxa2 Rf2+ 40. Rxf2 Rxf2+ 41. Qxf2 hxg5 42. Bxg5 Kh7 43. Qf5+ Kh8 44. Qh3+ Bh6 45. Qxh6#) 38... Rxg7 39. Rxg7 (39. dxc4 Rxg2+ 40. Kxg2 Qxa2+ 41. Kg1 Rg8+ 42. Bxg8 Kxg8 $18)) 34... Bxd3 {[%emt 0:02:29]} (34... Be8 $18 35. Rfg3 b5) 35. g5 {[%emt 0:00:58]} fxg5 {[%emt 0:17:42]} 36. Rxf7 {[%emt 0:01:08]} Rxf7 {[%emt 0:00:46]} 37. Qxf7 {[%emt 0:00:08]} Bxe4 {[%emt 0:00:09]} 38. Bf5+ {[%emt 0:07:32]} Bxf5 {[%emt 0:00:01]} 39. Qxf5+ {[%emt 0:00:02]} Kh8 {[%emt 0:00:16] [#]} 40. Bxg5 $1 {[%emt 0:00:00]} hxg5 {[%emt 0:00:00]} 41. Qxg5 {[%emt 0:04:04]} Qb7 {[%emt 0:02:11]} 42. d6 {[%emt 0:02:16]} Qf7 {[%emt 0:01:14] [#]} 43. Qxg7+ $16 {[%emt 0:01:06]} 1-0

[Event "Liberia Championship 2023"]
[Site "Monrovia"]
[Date "2024.01.25"]
[Round "10.7"]
[White "Prince Jegbadai"]
[Black "John Jallah"]
[Result "0-1"]
[ECO "D00"]
[WhiteElo "1627"]
[BlackElo "1761"]
[Annotator "NA RC"]
[PlyCount "60"]
[EventDate "2024.01.16"]
[EventType "swiss"]
[EventCountry "LBR"]
[SourceTitle "playchess.com"]
[Source "ChessBase"]
[SourceQuality "1"]
[TimeControl "40/5400+30:1800+30"]

1. d4 Nf6 {[%emt 0:31:16]} 2. Nc3 {[%emt 0:00:23]} d5 {[%emt 0:00:07]} 3. Bf4 {[%emt 0:00:38]} a6 {[%emt 0:00:34]} 4. e3 {[%emt 0:00:14]} e6 {[%emt 0:00:36]} 5. a3 {[%emt 0:00:18]} c5 {[%emt 0:00:24]} 6. Nf3 {[%emt 0:00:28]} Nc6 {[%emt 0:00:31]} 7. h3 {[%emt 0:00:17]} Be7 {[%emt 0:00:16]} 8. Be2 {[%emt 0:00:20]} O-O {[%emt 0:00:10]} 9. b3 {[%emt 0:00:22]} cxd4 {[%emt 0:00:25]} 10. exd4 {[%emt 0:00:22]} Ne4 {[%emt 0:01:17]} 11. Nxe4 dxe4 12. Ne5 {[%emt 0:02:41]} Nxd4 {[%emt 0:01:18]} 13. O-O {[%emt 0:00:16]} Bf6 {[%emt 0:00:15]} 14. Rc1 {[%emt 0:00:46]} Nxe2+ {[%emt 0:01:02]} 15. Qxe2 {[%emt 0:00:17]} Qc7 {[%emt 0:01:07]} 16. Ng6 {[%emt 0:00:39]} e5 {[%emt 0:00:33]} 17. Nxf8 {[%emt 0:00:43]} exf4 {[%emt 0:00:35]} 18. Nxh7 {[%emt 0:00:17]} Kxh7 {[%emt 0:00:21]} 19. Qxe4+ {[%emt 0:00:19]} g6 {[%emt 0:00:09]} 20. c4 {[%emt 0:01:21]} Bf5 {[%emt 0:00:14]} 21. Qf3 {[%emt 0:00:42]} Re8 {[%emt 0:01:10]} 22. Rfe1 {[%emt 0:00:49]} Re7 {[%emt 0:00:05]} 23. Rxe7 {[%emt 0:00:28]} Qxe7 {[%emt 0:00:17]} 24. Qxf4 {[%emt 0:01:32]} Bg5 {[%emt 0:00:01]} 25. Qd4 {[%emt 0:02:23]} Bxc1 {[%emt 0:00:04]} 26. a4 {[%emt 0:00:54]} Qe1+ {[%emt 0:00:11]} 27. Kh2 {[%emt 0:00:32]} Bh6 {[%emt 0:01:06]} 28. f3 {[%emt 0:01:28]} Be3 {[%emt 0:00:15]} 29. Qd5 {[%emt 0:01:04]} Bg1+ {[%emt 0:00:10]} 30. Kh1 {[%emt 0:02:04]} Bf2+ {[%emt 0:00:30]} 0-1

[Event "Liberia Championship 2023"]
[Site "Monrovia"]
[Date "2024.01.25"]
[Round "10.8"]
[White "Alfred J. Kollie"]
[Black "Martin Dunbar"]
[Result "0-1"]
[ECO "D00"]
[WhiteElo "1612"]
[BlackElo "1709"]
[Annotator "NA RC"]
[PlyCount "108"]
[EventDate "2024.01.16"]
[EventType "swiss"]
[EventCountry "LBR"]
[SourceTitle "playchess.com"]
[Source "ChessBase"]
[SourceQuality "1"]
[TimeControl "40/5400+30:1800+30"]

1. d4 {[%emt 0:00:04]} d5 {[%emt 0:50:49]} 2. Bg5 {[%emt 0:00:13]} Nf6 {[%emt 0:00:31]} 3. f3 {[%emt 0:00:12]} Bf5 {[%emt 0:00:40]} 4. Nd2 {[%emt 0:00:04]} h6 {[%emt 0:00:20]} 5. Bh4 {[%emt 0:00:09]} Nc6 {[%emt 0:00:12]} 6. c3 {[%emt 0:00:19]} g5 {[%emt 0:00:24]} 7. Bf2 {[%emt 0:00:15]} e6 {[%emt 0:00:23]} 8. e3 {[%emt 0:00:10]} a6 {[%emt 0:00:13]} 9. Nb3 {[%emt 0:00:18]} Be7 {[%emt 0:00:17]} 10. Bd3 {[%emt 0:00:16]} Bxd3 {[%emt 0:00:41]} 11. Qxd3 {[%emt 0:00:10]} Qd7 {[%emt 0:41:30]} 12. Ne2 {[%emt 1:34:20]} e5 {[%emt 0:00:30]} 13. O-O-O {[%emt 0:00:00]} e4 {[%emt 0:00:00]} 14. Qc2 {[%emt 0:00:00]} a5 {[%emt 0:00:00]} 15. Ng3 {[%emt 0:00:00]} a4 {[%emt 0:00:00]} 16. Nc5 {[%emt 0:00:00]} Bxc5 {[%emt 0:00:00]} 17. dxc5 {[%emt 0:00:00]} Qe7 {[%emt 0:00:00]} 18. c4 {[%emt 0:00:00]} Nb4 {[%emt 0:00:00]} 19. Qd2 {[%emt 0:00:00]} Qxc5 {[%emt 0:00:00]} 20. Qd4 {[%emt 0:00:00]} Qxd4 {[%emt 0:00:00]} 21. exd4 {[%emt 0:00:00]} Nd3+ {[%emt 0:00:00]} 22. Rxd3 {[%emt 0:00:00]} exd3 {[%emt 0:00:00]} 23. c5 {[%emt 0:05:30]} O-O {[%emt 0:05:30]} 24. Kd2 {[%emt 0:00:30]} Ra6 {[%emt 0:00:00]} 25. Kxd3 {[%emt 0:00:00]} b6 {[%emt 0:00:00]} 26. Rc1 {[%emt 0:00:00]} Rb8 {[%emt 0:00:00]} 27. Rc2 {[%emt 0:00:00]} bxc5 {[%emt 0:02:00]} 28. dxc5 {[%emt 0:02:00]} c6 {[%emt 0:00:30]} 29. Bd4 {[%emt 0:00:30]} Ne8 {[%emt 0:00:00]} 30. Be5 {[%emt 0:00:00]} Rb5 {[%emt 0:00:00]} 31. Nh5 {[%emt 0:00:00]} Kh7 {[%emt 0:00:00]} 32. Nf6+ {[%emt 0:00:00]} Nxf6 {[%emt 0:00:00]} 33. Bxf6 {[%emt 0:00:00]} Ra8 {[%emt 0:00:00]} 34. Bd4 {[%emt 0:00:00]} Re8 {[%emt 0:00:00]} 35. Re2 {[%emt 0:00:00]} Rxe2 {[%emt 0:00:00]} 36. Kxe2 {[%emt 0:00:00]} f5 {[%emt 0:00:00]} 37. g3 {[%emt 0:00:00]} Kg6 {[%emt 0:00:00]} 38. h3 {[%emt 0:00:00]} Rb4 {[%emt 0:00:00]} 39. Kd3 {[%emt 0:00:00]} h5 {[%emt 0:05:30]} 40. Kc3 {[%emt 0:05:30]} Rc4+ {[%emt 0:00:30]} 41. Kd3 {[%emt 0:30:30]} Rc1 {[%emt 0:04:00]} 42. f4 {[%emt 0:00:00]} h4 {[%emt 0:02:36]} 43. gxh4 {[%emt 0:00:00]} g4 {[%emt 0:02:12]} 44. hxg4 {[%emt 0:00:00]} fxg4 {[%emt 0:00:21]} 45. Kd2 {[%emt 0:00:00]} Rh1 {[%emt 0:23:21]} 46. b4 {[%emt 0:02:30]} Kf5 {[%emt 0:00:00]} 47. b5 cxb5 {[%emt 0:00:00]} 48. c6 {[%emt 0:00:00]} Ke6 {[%emt 0:01:30]} 49. Be5 {[%emt 0:01:30]} Rxh4 {[%emt 0:00:00]} 50. Ke2 {[%emt 0:00:00]} Rh2+ 51. Ke3 Rxa2 {[%emt 0:00:00]} 52. Kd4 {[%emt 0:00:00]} Rc2 {[%emt 0:00:00]} 53. f5+ {[%emt 0:00:00]} Kxf5 {[%emt 0:00:00]} 54. Kxd5 {[%emt 0:00:00]} Rxc6 {[%emt 0:00:00]} 0-1

[Event "Liberia Championship 2023"]
[Site "Monrovia"]
[Date "2024.01.25"]
[Round "10.9"]
[White "Daniel Kolliemelen"]
[Black "Harold Evans"]
[Result "1-0"]
[ECO "D00"]
[WhiteElo "1809"]
[BlackElo "1735"]
[Annotator "NA RC"]
[PlyCount "95"]
[EventDate "2024.01.16"]
[EventType "swiss"]
[EventCountry "LBR"]
[SourceTitle "playchess.com"]
[Source "ChessBase"]
[SourceQuality "1"]
[TimeControl "40/5400+30:1800+30"]

{[%evp 26,95,92,95,84,67,95,32767,32767,32767,32767,171,186,132,214,0,177,182,32767,32767,32767,32767,32767,32767,32767,62,67,42,64,42,55,57,183,205,212,210,321,318,274,205,206,179,286,32767,435,460,658,625,691,631,639,629,683,661,610,619,960,801,1014,936,1622,1950,1804,2428,29984,29980,29981,1848,29986,29988,29993,29991]} 1. d4 {[%emt 1:31:00]} d5 {[%emt 0:31:05]} 2. e3 {[%emt 0:00:00]} Nc6 {[%emt 0:00:10]} 3. f4 {[%emt 0:00:00]} Bf5 {[%emt 0:00:34]} 4. a3 {[%emt 0:00:00]} Qd7 {[%emt 0:00:11]} 5. b4 {[%emt 0:00:00]} O-O-O {[%emt 0:00:41]} 6. Bb2 {[%emt 0:00:00] D00: Damenbauernspiele.} h6 {[%emt 0:00:47]} 7. Nf3 {[%emt 0:00:00]} f6 {[%emt 0:00:32]} 8. Bd3 {[%emt 0:00:00]} g5 9. O-O {[%emt 0:00:00]} gxf4 {[%emt 0:00:30]} 10. exf4 {[%emt 0:00:00]} h5 {[%emt 0:00:08]} 11. Nh4 {[%emt 0:00:00]} Nh6 {[%emt 0:03:18]} 12. Be2 {[%emt 0:00:00]} Ng4 {[%emt 0:03:37]} 13. Qd2 {[%emt 0:00:00]} Nh6 {[%emt 0:06:20]} (13... e5 $1 $11) 14. b5 {[%emt 0:00:00]} (14. Bxh5 Bg4 15. Bxg4 Nxg4 $18) 14... Nb8 {[%emt 0:00:16]} 15. Nc3 {[%emt 0:00:00]} ({But not} 15. Bxh5 Qxb5 16. Nc3 Qd7 $15 (16... Qxb2 17. Nxf5 Nxf5 18. Bg4 $11)) 15... e6 {[%emt 0:01:31]} 16. Rae1 {[%emt 0:00:00]} Qg7 {[%emt 0:00:15]} 17. Bf3 {[%emt 0:00:00]} Qh7 {[%emt 0:05:48]} 18. Nxf5 {[%emt 0:00:00]} ({Minderwertig wäre} 18. Bxh5 Nd7 $15) 18... Qxf5 $1 $11 {[%emt 0:01:02] and Black has nothing to worry.} 19. Qe3 {[%emt 0:00:00]} ({Better is} 19. Qe2 $18) 19... Rd6 {[%emt 0:01:44]} (19... Nd7 $16) 20. Qd2 $2 {[%emt 0:00:00]} ({Vorzuziehen ist} 20. Qe2 $18) 20... Nf7 $2 {[%emt 0:02:00]} 21. Be2 {[%emt 0:00:00]} Rg8 {[%emt 0:00:53]} 22. Bd3 {[%emt 0:00:00]} Qg4 {[%emt 0:00:10]} 23. Qe2 {[%emt 0:00:00]} Qg7 {[%emt 0:01:38]} 24. a4 {[%emt 0:00:00]} Nd8 {[%emt 0:00:15]} 25. Ba3 {[%emt 0:00:00]} (25. Qxh5 $2 Qxg2#) ({White should play} 25. f5 $18 e5 26. dxe5 (26. Ba3 Rd7 $16) 26... fxe5 27. f6) 25... Rd7 {[%emt 0:00:22]} 26. Bxf8 {[%emt 0:00:00]} Qxf8 {[%emt 0:00:17]} 27. Nd1 {[%emt 0:00:00]} Rdg7 {[%emt 0:00:27]} 28. Rf2 {[%emt 0:00:00]} (28. Qxh5 Rxg2+ 29. Kh1 f5 $15) 28... h4 {[%emt 0:01:56]} ({Black should play} 28... Nd7 $1 $14) 29. f5 {[%emt 0:00:00]} e5 {[%emt 0:03:11]} 30. dxe5 {[%emt 0:14:30]} Qc5 {[%emt 0:36:02]} 31. Qe3 {[%emt 0:00:00]} ({Weaker is} 31. exf6 Rxg2+ 32. Kh1 Rxf2 33. Qxf2 Qxf2 34. Nxf2 Nd7 $16) 31... d4 {[%emt 0:00:30]} 32. Qe2 {[%emt 0:00:00]} Nd7 {[%emt 0:00:00]} 33. Bc4 {[%emt 0:00:00]} d3 {[%emt 0:00:00]} (33... Re8 {was necessary.} 34. e6 Ne5) 34. cxd3 {[%emt 0:00:00]} Rxg2+ {[%emt 0:00:00]} (34... Nxe5 $142 35. Bxg8 Rxg8) 35. Kh1 {[%emt 0:00:00]} R2g7 {[%emt 0:00:00]} (35... Rxf2 $142 36. Qxf2 (36. Nxf2 Re8 $18) 36... Qxf2 37. Nxf2 Rg5) 36. Bxg8 {[%emt 0:00:00]} Rxg8 {[%emt 0:00:00]} 37. e6 {[%emt 0:00:00]} Ne5 {[%emt 0:00:00]} 38. Rg1 {[%emt 0:00:00]} Re8 {[%emt 0:00:00]} 39. Qe4 {[%emt 0:00:00]} Qa3 {[%emt 0:00:00]} 40. Nb2 {[%emt 0:00:00]} c6 {[%emt 0:00:00]} 41. d4 {[%emt 0:13:13]} Qb4 {[%emt 0:00:00]} 42. Qf4 {[%emt 0:00:00]} Nc4 {[%emt 0:00:00]} 43. d5 {[%emt 0:00:00]} cxd5 {[%emt 0:00:00]} 44. Nxc4 {[%emt 0:00:00]} dxc4 {[%emt 0:00:00]} 45. Rc1 {[%emt 0:00:00]} Nc6 {[%emt 0:00:00]} 46. Qxc4 {[%emt 0:00:00]} (46. bxc6 $142 b6 47. Qxc4 Qxc4 48. Rxc4 a6 49. Rxh4 Kb8 50. Rd2 Re7 51. Rd7) 46... Qa5 {[%emt 0:00:00]} 47. bxc6 {[%emt 0:00:00]} Qb6 {[%emt 0:00:00]} 48. Rf3 {[%emt 0:00:00]} 1-0

[Event "Liberia Championship 2023"]
[Site "Monrovia"]
[Date "2024.01.26"]
[Round "11.1"]
[White "Daniel Kolliemelen"]
[Black "Thomas, Saah"]
[Result "1-0"]
[ECO "A85"]
[WhiteElo "1809"]
[BlackElo "1889"]
[Annotator "NA RC"]
[PlyCount "87"]
[EventDate "2024.01.16"]
[EventType "swiss"]
[EventCountry "LBR"]
[SourceTitle "playchess.com"]
[Source "ChessBase"]
[SourceQuality "1"]
[TimeControl "40/5400+30:1800+30"]

1. c4 {[%emt 0:01:54]} f5 {[%emt 0:00:29]} 2. d4 {[%emt 0:01:07]} Nf6 {[%emt 0:00:03]} 3. e3 {[%emt 0:00:58]} e6 {[%emt 0:00:03]} 4. Nc3 {[%emt 0:00:30]} b6 {[%emt 0:00:02]} 5. a3 {[%emt 0:02:03]} Bb7 {[%emt 0:00:20]} 6. Nf3 {[%emt 0:00:26]} d6 {[%emt 0:00:26]} 7. Bd3 {[%emt 0:00:33]} Be7 {[%emt 0:00:46]} 8. O-O {[%emt 0:00:55]} Qd7 {[%emt 0:00:27]} 9. Ne1 {[%emt 0:03:25]} e5 {[%emt 0:00:55]} 10. b4 {[%emt 0:01:18]} e4 {[%emt 0:00:16]} 11. Be2 {[%emt 0:02:15]} O-O {[%emt 0:00:05]} 12. Qb3 {[%emt 0:00:29]} c5 {[%emt 0:00:29]} 13. d5 {[%emt 0:02:23]} Qe8 {[%emt 0:00:59]} 14. bxc5 {[%emt 0:02:38]} dxc5 {[%emt 0:00:02]} 15. f3 {[%emt 0:02:03]} Bd6 {[%emt 0:00:38]} 16. f4 {[%emt 0:01:26]} Nbd7 {[%emt 0:00:26]} 17. g3 {[%emt 0:01:40]} Rd8 {[%emt 0:00:38]} 18. Bb2 {[%emt 0:02:08]} Qg6 {[%emt 0:00:22]} 19. Ng2 {[%emt 0:02:46]} h6 {[%emt 0:00:26]} 20. Nd1 {[%emt 0:01:02]} Ne8 {[%emt 0:00:36]} 21. Nf2 {[%emt 0:00:41]} Be7 {[%emt 0:00:16]} 22. g4 {[%emt 0:03:10]} Nd6 {[%emt 0:01:01]} 23. Kh1 {[%emt 0:00:29]} Nf6 {[%emt 0:06:58]} 24. Nh4 {[%emt 0:02:32]} Qh7 {[%emt 0:00:19]} 25. gxf5 {[%emt 0:06:42]} Nxf5 {[%emt 0:01:03]} 26. Nxf5 {[%emt 0:04:23]} Qxf5 {[%emt 0:00:01]} 27. Rg1 {[%emt 0:01:17]} Bc8 {[%emt 0:01:20]} 28. Ng4 {[%emt 0:02:26]} Nxg4 {[%emt 0:01:16]} 29. Bxg4 {[%emt 0:01:06]} Qxg4 {[%emt 0:00:07]} 30. Rxg4 {[%emt 0:07:10]} Bxg4 {[%emt 0:00:01]} 31. Qc2 {[%emt 0:05:53]} Bf3+ {[%emt 0:00:08]} 32. Kg1 {[%emt 0:00:17]} Rd6 {[%emt 0:00:01]} 33. Kf1 Bh4 34. Be5 Rg6 35. Ra2 {[%emt 0:08:28]} Rg4 {[%emt 0:01:36]} 36. Qa4 {[%emt 0:02:20]} g5 {[%emt 0:03:01]} 37. f5 {[%emt 0:02:28]} Be2+ {[%emt 0:08:01]} 38. Kxe2 {[%emt 0:03:29]} Rg2+ {[%emt 0:00:03]} 39. Kd1 {[%emt 0:01:11]} Rg1+ {[%emt 0:03:25]} 40. Kc2 {[%emt 0:00:33]} g4 {[%emt 0:04:53]} 41. Qc6 {[%emt 0:30:54]} Bf6 {[%emt 0:36:06]} 42. Bxf6 {[%emt 0:24:02]} g3 {[%emt 1:03:26]} 43. Qe6+ {[%emt 0:00:00]} Rf7 {[%emt 0:00:00]} 44. Qe8+ {[%emt 0:00:00]} 1-0

[Event "Liberia Championship 2023"]
[Site "Monrovia"]
[Date "2024.01.26"]
[Round "11.3"]
[White "Barcon, Harmon"]
[Black "James, Tondo"]
[Result "1-0"]
[ECO "C90"]
[WhiteElo "1902"]
[BlackElo "1837"]
[Annotator "TA"]
[PlyCount "71"]
[EventDate "2024.01.16"]
[EventType "swiss"]
[EventCountry "LBR"]
[SourceTitle "playchess.com"]
[Source "ChessBase"]
[SourceQuality "1"]
[TimeControl "40/5400+30:1800+30"]

{[%evp 19,71,-23,-10,-25,-19,-24,-24,-22,-13,-27,-22,-27,-17,-26,6,-12,5,0,41,53,70,63,68,50,78,0,0,-16,8,0,7,0,7,7,50,7,39,35,70,96,242,237,269,269,450,450,454,450,718,718,2724,1981,29983,29984]} 1. e4 {[%emt 0:00:02]} e5 {[%emt 0:00:02]} 2. Nf3 {[%emt 0:00:07]} Nc6 {[%emt 0:00:12]} 3. Bb5 {[%emt 0:00:07]} a6 {[%emt 0:00:02]} 4. Ba4 {[%emt 0:00:13]} Nf6 {[%emt 0:03:01]} 5. O-O {[%emt 0:00:03]} Be7 {[%emt 0:00:11]} 6. Re1 {[%emt 0:00:03]} b5 {[%emt 0:00:06]} 7. Bb3 {[%emt 0:00:12]} d6 {[%emt 0:00:17]} 8. h3 {[%emt 0:00:07]} Na5 {[%emt 0:00:35]} 9. c3 {[%emt 0:00:03]} Nxb3 {[%emt 0:00:27]} 10. Qxb3 {[%emt 0:00:02]} c5 {[%emt 0:00:45]} 11. d3 {[%emt 0:00:07]} O-O {[%emt 0:00:51]} 12. Nbd2 {[%emt 0:00:22]} h6 {[%emt 0:03:08]} 13. Nf1 {[%emt 0:00:04] Black has an edge.} Be6 {[%emt 0:00:12]} 14. Qc2 {[%emt 0:00:01]} Rc8 {[%emt 0:00:49]} 15. Ng3 {[%emt 0:00:08]} Qd7 {[%emt 0:00:52]} 16. Be3 {[%emt 0:00:49]} Rc7 {[%emt 0:02:21]} 17. Qd2 {[%emt 0:00:49][%cal Oe3h6]} Kh7 {[%emt 0:00:42]} 18. d4 {[%emt 0:01:13]} cxd4 {[%emt 0:06:16]} 19. cxd4 {[%emt 0:00:02]} exd4 {[%emt 0:02:00]} 20. Nxd4 {[%emt 0:00:04]} Rfc8 {[%emt 1:17:41]} 21. f4 {[%emt 0:00:25]} Qe8 {[%emt 0:00:43]} 22. f5 {[%emt 1:36:27]} ({White should play} 22. Rad1 $16) 22... Bd7 $1 $11 {[%emt 0:00:22]} 23. Bf4 {[%emt 0:03:27]} Qf8 {[%emt 0:04:02]} 24. Kh2 {[%emt 0:01:10]} Rc4 {[%emt 1:11:16]} 25. Re2 {[%emt 0:04:56]} Kg8 {[%emt 0:04:39]} 26. Rd1 {[%emt 0:01:59]} Kh7 {[%emt 0:02:45]} 27. Qd3 {[%emt 0:01:00]} Kg8 {[%emt 0:00:19]} 28. Nf3 {[%emt 0:05:26] Excellent horsemanship.} d5 {[%emt 0:15:39] [#] ...dxe4 would now be deadly.} 29. Ne5 {[%emt 1:14:39] White is much more active.} dxe4 {[%emt 0:02:48] A mistake that costs the game.} (29... h5 $16) 30. Nxe4 $18 {[%emt 0:00:22]} Rxe4 {[%emt 0:19:35]} 31. Nxd7 {[%emt 0:00:58]} Rxf4 $2 {[%emt 0:11:47]} (31... Rd8 {was worth a try.}) 32. Nxf8 {[%emt 0:00:20]} Bxf8 {[%emt 0:00:02]} 33. b3 {[%emt 0:01:36] aiming for g3.} Rc5 {[%emt 0:04:57]} (33... Bc5 $142 34. Rdd2 Rf8) 34. Qd8 {[%emt 0:00:26][%cal Od8f8] Black must now prevent Qxf8+!} Ne4 {[%emt 0:08:42]} 35. Qa8 {[%emt 0:01:32][%csl LRa6,LRe4]} Nf6 {[%emt 0:04:29] [#]} 36. Qxf8+ $3 {[%emt 0:00:34][%mdl 512] Weighted Error Value: White=0.13 (very precise) /Black=0.58.  Mistake:       	White=1     	Black=3      Inaccurate:     	White=1     	Black=7      OK:         	White=6     	Black=1      Best:        	White=2     	---        Strong:       	---       	Black=1} 1-0